bitfinex/quotes_SOLUSD_20220208
["timestamp","ask_amount","ask_price","bid_price","bid_amount"]
[1644349909415,52.95485395,111.21,111.12,65.41864403]
[1644349909616,52.95485395,111.21,111.12,65.16864403]
[1644349910016,52.95485395,111.21,111.12,38.44484403]
[1644349910217,1.26653082,111.2,111.12,38.44484403]
[1644349910417,13.5006,111.18,111.12,38.44484403]
[1644349910616,44.12475934,111.17,111.12,38.44484403]
[1644349911017,13.5006,111.18,111.12,38.44484403]
[1644349911417,13.7506,111.18,111.12,38.44484403]
[1644349912219,43.03707396,111.17,111.12,38.44484403]
[1644349912420,13.7506,111.18,111.12,38.44484403]
[1644349912619,13.5006,111.18,111.12,38.44484403]
[1644349913220,13.5006,111.18,111.12,38.69484403]
[1644349914222,40.11654959,111.19,111.12,38.69484403]
[1644349915025,40.36654959,111.19,111.12,38.69484403]
[1644349916522,40.36654959,111.19,111.12,38.44484403]
[1644349917526,0.25,111.19,111.12,38.44484403]
[1644349917727,19.4982,111.2,111.12,38.44484403]
[1644349917926,19.7482,111.2,111.12,38.44484403]
[1644349918527,47.09214351,111.19,111.12,38.44484403]
[1644349918730,60.59034351,111.19,111.12,38.44484403]
[1644349919327,60.59034351,111.19,111.12,52.17014403]
[1644349920128,60.84034351,111.19,111.12,52.17014403]
[1644349920929,13.7482,111.19,111.12,52.17014403]
[1644349921134,13.7482,111.19,111.12,52.42014403]
[1644349921428,13.7482,111.19,111.12,65.91684403]
[1644349921429,0.25,111.19,111.12,65.91684403]
[1644349921630,0.25,111.19,111.12,71.91684403]
[1644349921830,15.01323082,111.21,111.12,71.91684403]
[1644349922029,57.86328948,111.21,111.12,71.91684403]
[1644349922930,1.26653082,111.2,111.12,71.91684403]
[1644349923129,14.76333082,111.2,111.12,71.91684403]
[1644349923328,13.4968,111.2,111.12,71.91684403]
[1644349923529,37.2291874,111.19,111.12,71.91684403]
[1644349924530,50.7272874,111.19,111.1,36.4124]
[1644349924732,1.26653082,111.18,111.07,47.70038414]
[1644349924931,1.26653082,111.17,111.08,6.0]
[1644349925133,1.26653082,111.17,111.07,67.25258414]
[1644349925534,1.26653082,111.17,111.08,42.94619449]
[1644349925535,13.5023,111.16,111.08,42.94619449]
[1644349925735,1.26653082,111.18,111.08,53.72519449]
[1644349926036,1.26653082,111.18,111.08,61.25277863]
[1644349926236,1.26653082,111.19,111.08,61.25277863]
[1644349926634,7.26653082,111.19,111.08,61.25277863]
[1644349926835,1.26653082,111.19,111.08,144.76277863]
[1644349927035,41.26154232,111.18,111.08,144.76277863]
[1644349927634,14.76453082,111.19,111.08,171.23387863]
[1644349927837,13.748,111.19,111.08,171.23387863]
[1644349928039,13.748,111.19,111.09,1.27758414]
[1644349928235,12.97,111.18,111.09,1.27758414]
[1644349928436,1.26653082,111.17,111.09,6.0]
[1644349928636,38.41824007,111.17,111.1,46.63190948]
[1644349928836,38.41824007,111.17,111.1,56.91690948]
[1644349929237,38.41824007,111.17,111.1,57.16690948]
[1644349929736,51.91854007,111.17,111.1,46.88190948]
[1644349930637,51.91854007,111.17,111.1,46.63190948]
[1644349930837,13.5003,111.17,111.09,6.0]
[1644349931039,13.5003,111.17,111.09,0.25]
[1644349931541,13.5003,111.17,111.07,45.81488414]
[1644349931740,13.5003,111.17,111.08,0.25]
[1644349931939,40.59573607,111.16,111.08,36.85888703]
[1644349932139,54.09783607,111.16,111.08,42.85888703]
[1644349932342,54.34783607,111.16,111.08,42.85888703]
[1644349932840,13.5021,111.16,111.08,42.85888703]
[1644349933046,1.26653082,111.18,111.08,56.36038703]
[1644349933240,1.26653082,111.19,111.08,82.41897117]
[1644349933441,1.26653082,111.19,111.08,95.38897117]
[1644349933640,1.26653082,111.2,111.09,1.27758414]
[1644349933841,1.26653082,111.2,111.1,39.73032024]
[1644349934044,1.26653082,111.21,111.1,86.97374096]
[1644349934241,1.26653082,111.21,111.1,93.22374096]
[1644349934441,1.26653082,111.21,111.12,13.4943]
[1644349934643,1.26653082,111.21,111.12,19.4943]
[1644349934842,0.25,111.21,111.12,19.7443]
[1644349935242,1.51653082,111.22,111.12,19.7443]
[1644349935442,1.51653082,111.22,111.13,42.37494716]
[1644349935644,1.51653082,111.22,111.15,13.4921]
[1644349935843,42.64004376,111.21,111.16,44.86247416]
[1644349936042,42.64004376,111.21,111.12,24.291]
[1644349936245,48.64004376,111.21,111.12,24.291]
[1644349936442,49.90657458,111.21,111.12,24.291]
[1644349936643,63.40207458,111.21,111.12,37.5385]
[1644349937042,41.49040413,111.19,111.13,44.40216165]
[1644349938042,54.98850413,111.19,111.13,44.40216165]
[1644349938443,54.98850413,111.19,111.11,38.0891]
[1644349938944,54.98850413,111.19,111.08,23.97258414]
[1644349939144,56.25503495,111.19,111.1,13.4991]
[1644349939344,56.25503495,111.19,111.11,46.94612046]
[1644349939544,54.98850413,111.19,111.11,46.94612046]
[1644349939744,54.98850413,111.19,111.11,47.19612046]
[1644349939944,13.4981,111.19,111.11,46.94612046]
[1644349940146,13.4981,111.19,111.11,57.65312046]
[1644349940747,13.7481,111.19,111.11,71.15192046]
[1644349940947,59.64837526,111.19,111.11,71.15192046]
[1644349941144,60.91490608,111.19,111.11,60.69492046]
[1644349941748,60.91490608,111.19,111.11,47.19612046]
[1644349943848,60.91490608,111.19,111.11,60.69512046]
[1644349944147,60.91490608,111.19,111.08,1.27758414]
[1644349944348,1.26653082,111.18,111.09,6.0]
[1644349944648,13.5071,111.15,111.05,1.27758414]
[1644349944849,13.5071,111.15,111.04,1.27758414]
[1644349945258,43.67937137,111.14,111.05,35.80227599]
[1644349945457,44.94590219,111.14,111.05,35.80227599]
[1644349945657,57.91590219,111.14,111.05,35.80227599]
[1644349946458,57.91590219,111.14,111.01,1.27758414]
[1644349946658,13.5093,111.12,111.01,1.27758414]
[1644349946859,12.97,111.11,111.0,1.27758414]
[1644349947060,12.97,111.11,110.98,24.08808414]
[1644349947257,37.013,111.11,110.98,24.08808414]
[1644349947458,42.00194469,111.1,110.99,47.33125347]
[1644349947658,12.97,111.09,110.99,71.00005001]
[1644349947857,34.41107374,111.08,110.99,71.25005001]
[1644349948059,34.41107374,111.08,110.99,47.58125347]
[1644349948361,34.66107374,111.08,110.99,47.58125347]
[1644349948760,48.17587374,111.08,110.99,47.58125347]
[1644349950261,47.92587374,111.08,110.99,47.58125347]
[1644349951067,47.92587374,111.08,110.99,61.09545347]
[1644349951464,48.17587374,111.08,110.99,61.09545347]
[1644349951663,54.17587374,111.08,110.99,61.09545347]
[1644349952264,19.5148,111.08,110.99,61.09545347]
[1644349952478,13.5148,111.08,110.99,61.09545347]
[1644349952678,13.5148,111.08,110.99,67.09545347]
[1644349952878,13.5101,111.09,110.99,67.09545347]
[1644349953179,41.64058173,111.12,111.04,43.62140542]
[1644349953580,41.64058173,111.12,111.04,43.87140542]
[1644349953779,13.5089,111.1,111.04,43.87140542]
[1644349954180,13.5089,111.1,111.04,57.38070542]
[1644349956085,13.7589,111.1,111.04,57.38070542]
[1644349956382,50.71014679,111.1,111.04,57.13070542]
[1644349956782,13.7589,111.1,111.04,57.13070542]
[1644349957384,13.7589,111.1,111.04,57.38070542]
[1644349958884,46.81788071,111.12,111.04,57.38070542]
[1644349958885,49.8098,111.13,111.04,57.38070542]
[1644349959086,23.1326,111.16,111.04,75.50970542]
[1644349959385,23.1326,111.16,111.04,88.47970542]
[1644349959586,29.1326,111.16,111.04,88.47970542]
[1644349959784,39.56229941,111.15,111.04,88.47970542]
[1644349960185,39.81229941,111.15,111.04,88.47970542]
[1644349960386,45.81229941,111.15,111.04,88.47970542]
[1644349960785,13.5043,111.14,111.04,88.47970542]
[1644349961786,13.5043,111.14,111.04,177.98970542]
[1644349962687,40.89480339,111.13,111.04,177.98970542]
[1644349962889,54.40000339,111.13,111.04,177.98970542]
[1644349963190,13.5052,111.13,111.04,177.98970542]
[1644349964190,13.5035,111.14,111.04,177.98970542]
[1644349964391,69.5426,111.18,111.04,232.49794304]
[1644349964590,24.535,111.18,111.05,124.33079334]
[1644349964793,24.535,111.18,111.08,13.4996]
[1644349964992,34.8148298,111.2,111.09,141.84281468]
[1644349965191,34.8148298,111.2,111.09,148.09281468]
[1644349965491,13.4981,111.19,111.09,58.58281468]
[1644349965691,39.14853182,111.18,111.09,58.58281468]
[1644349967193,39.39853182,111.18,111.09,58.58281468]
[1644349967693,13.5003,111.17,111.11,13.5005]
[1644349967893,13.5003,111.17,111.12,48.35934614]
[1644349968994,42.2272039,111.16,111.09,0.25]
[1644349969295,42.2272039,111.16,111.07,23.7506]
[1644349969296,55.7292039,111.16,111.07,23.7506]
[1644349969694,61.7292039,111.16,111.07,30.0006]
[1644349969893,61.7292039,111.16,111.08,38.28191803]
[1644349970095,61.7292039,111.16,111.08,51.78611803]
[1644349970295,61.7292039,111.16,111.08,38.28191803]
[1644349970499,61.7292039,111.16,111.07,23.7506]
[1644349970697,61.7292039,111.16,111.05,22.8235]
[1644349970897,64.08695939,111.16,111.05,28.8235]
[1644349971098,65.35349021,111.16,111.05,28.8235]
[1644349971500,63.24573472,111.16,111.05,28.8235]
[1644349971799,61.9792039,111.16,111.06,53.76578882]
[1644349972001,74.9492039,111.16,111.06,53.76578882]
[1644349972201,76.21573472,111.16,111.06,54.01578882]
[1644349972400,76.21573472,111.16,111.06,53.76578882]
[1644349972801,76.21573472,111.16,111.06,54.01578882]
[1644349974403,76.21573472,111.16,111.06,13.5064]
[1644349974602,76.21573472,111.16,111.02,113.72998414]
[1644349974603,78.76349021,111.16,111.02,24.21998414]
[1644349974802,1.26653082,111.15,111.01,0.024]
[1644349975002,13.5108,111.11,111.01,0.024]
[1644349975503,47.35244273,111.1,111.01,47.23982466]
[1644349975903,53.35244273,111.1,111.01,47.23982466]
[1644349976103,53.60244273,111.1,111.01,47.23982466]
[1644349976705,13.5112,111.08,111.01,60.75162466]
[1644349976906,39.06908317,111.07,111.01,60.72762466]
[1644349977704,45.0425,111.09,111.01,60.72762466]
[1644349977904,6.25,111.1,111.01,60.72762466]
[1644349978105,0.25,111.1,111.01,61.00162466]
[1644349978304,6.25,111.1,111.01,61.00162466]
[1644349978811,48.73141844,111.1,111.01,61.00162466]
[1644349979004,13.5106,111.08,111.01,61.00162466]
[1644349979203,13.5106,111.08,111.01,60.97762466]
[1644349980410,13.5095,111.09,111.01,60.97762466]
[1644349980607,13.5095,111.09,111.01,61.00162466]
[1644349980807,13.5095,111.09,111.01,60.97762466]
[1644349981208,39.22485024,111.08,111.01,60.72762466]
[1644349981422,13.5137,111.06,111.01,47.21582466]
[1644349981609,60.65674665,111.06,111.01,47.21582466]
[1644349982710,66.65674665,111.06,111.01,47.21582466]
[1644349982909,60.90674665,111.06,111.0,0.024]
[1644349983110,77.42874665,111.06,110.98,1.30158414]
[1644349983310,77.42874665,111.06,110.97,0.024]
[1644349983510,92.50650214,111.06,110.97,0.024]
[1644349984111,90.39874665,111.06,110.97,0.024]
[1644349985312,92.50650214,111.06,110.97,0.024]
[1644349989433,92.50650214,111.06,110.94,0.024]
[1644349989836,89.95,111.04,110.94,0.024]
[1644349990036,13.5251,111.01,110.92,0.024]
[1644349990236,49.21179098,111.0,110.9,43.93563865]
[1644349990635,51.31954647,111.0,110.9,43.93563865]
[1644349991036,2.10775549,110.99,110.9,43.93563865]
[1644349991235,12.97,110.98,110.87,0.024]
[1644349991436,23.334,110.98,110.87,0.024]
[1644349991739,13.5278,110.97,110.87,0.024]
[1644349991937,13.5278,110.97,110.86,0.024]
[1644349992337,48.6890982,110.96,110.86,42.81665614]
[1644349992739,48.6890982,110.96,110.86,48.81665614]
[1644349993340,61.6590982,110.96,110.86,42.81665614]
[1644349993543,13.5308,110.93,110.86,43.06665614]
[1644349993739,38.54646192,110.92,110.86,43.06665614]
[1644349993941,38.54646192,110.92,110.86,43.04265614]
[1644349994542,38.54646192,110.92,110.86,42.79265614]
[1644349994843,52.07716192,110.92,110.85,47.8632]
[1644349995044,52.07716192,110.92,110.85,54.1132]
[1644349995741,52.07716192,110.92,110.86,40.65572399]
[1644349996643,13.5307,110.92,110.86,40.65572399]
[1644349996845,13.5293,110.94,110.86,40.65572399]
[1644349997045,13.5293,110.94,110.86,40.67972399]
[1644349997244,13.5293,110.94,110.86,40.92972399]
[1644349997644,45.1033,110.95,110.86,40.67972399]
[1644349997645,42.41842297,110.93,110.86,40.67972399]
[1644349998245,42.66842297,110.93,110.86,40.67972399]
[1644349998746,13.531,110.92,110.86,40.92972399]
[1644349998947,13.531,110.92,110.86,40.90572399]
[1644349999646,13.531,110.92,110.86,40.65572399]
[1644349999846,13.531,110.92,110.86,40.90572399]
[1644350001854,13.781,110.92,110.86,40.90572399]
[1644350002450,13.781,110.92,110.86,40.65572399]
[1644350005355,13.781,110.92,110.86,40.90572399]
[1644350006051,13.531,110.92,110.86,40.65572399]
[1644350006254,13.531,110.92,110.86,40.90572399]
[1644350007753,55.94782297,110.93,110.86,40.90572399]
[1644350007952,61.94782297,110.93,110.86,40.90572399]
[1644350008153,62.19782297,110.93,110.86,40.90572399]
[1644350011558,62.19782297,110.93,110.86,40.65572399]
[1644350011758,62.19782297,110.93,110.86,40.90572399]
[1644350012959,62.19782297,110.93,110.86,42.18330813]
[1644350014974,19.5294,110.93,110.86,42.18330813]
[1644350015164,13.528,110.94,110.86,54.39230813]
[1644350015363,46.1685,110.99,110.87,1.27758414]
[1644350015562,46.1685,110.99,110.88,1.27758414]
[1644350015762,46.1685,110.99,110.89,1.30158414]
[1644350015967,41.72122703,110.98,110.9,36.07744785]
[1644350016162,41.72122703,110.98,110.9,42.07744785]
[1644350016364,13.5245,110.97,110.9,42.32744785]
[1644350016765,41.97122703,110.98,110.9,43.60503199]
[1644350017468,55.49442703,110.98,110.9,37.35503199]
[1644350017665,57.60218252,110.98,110.89,48.92618414]
[1644350017865,57.60218252,110.98,110.89,53.6486]
[1644350018267,57.60218252,110.98,110.89,6.024]
[1644350018468,70.57218252,110.98,110.89,6.024]
[1644350018667,76.57218252,110.98,110.89,6.024]
[1644350019066,76.57218252,110.98,110.89,0.024]
[1644350019269,76.57218252,110.98,110.88,1.30158414]
[1644350019467,76.57218252,110.98,110.88,0.024]
[1644350019668,86.17585676,110.98,110.87,1.27758414]
[1644350019868,86.17585676,110.98,110.88,0.024]
[1644350020271,91.84215858,110.98,110.88,0.024]
[1644350021271,90.57562776,110.98,110.88,1.30158414]
[1644350021470,90.57562776,110.98,110.88,1.55158414]
[1644350021671,105.01134307,110.98,110.88,1.30158414]
[1644350021872,106.27787389,110.98,110.88,0.024]
[1644350022373,1.26653082,110.97,110.88,0.024]
[1644350022574,13.5344,110.95,110.85,1.30158414]
[1644350022773,12.97,110.94,110.88,0.024]
[1644350022974,41.40916055,110.94,110.85,1.30158414]
[1644350023175,89.51,110.93,110.85,0.024]
[1644350023371,89.51,110.93,110.83,1.27758414]
[1644350023372,12.97,110.92,110.83,1.27758414]
[1644350023571,26.97344524,110.92,110.83,0.024]
[1644350023778,40.85335503,110.91,110.81,1.27758414]
[1644350023977,12.97,110.9,110.82,0.024]
[1644350024173,18.97,110.9,110.82,0.024]
[1644350024373,21.32775549,110.9,110.82,0.024]
[1644350024774,13.5402,110.89,110.81,1.27758414]
[1644350024974,26.5102,110.89,110.81,0.024]
[1644350025176,28.58021739,110.89,110.8,7.30158414]
[1644350025379,2.10775549,110.88,110.8,7.30158414]
[1644350025773,13.5412,110.86,110.8,6.0]
[1644350026174,37.00083289,110.85,110.79,7.27758414]
[1644350026373,37.00083289,110.85,110.79,1.27758414]
[1644350026574,37.00083289,110.85,110.79,7.27758414]
[1644350026774,13.5412,110.84,110.79,7.27758414]
[1644350028275,13.539,110.85,110.79,7.27758414]
[1644350028478,12.97,110.9,110.79,8.90187228]
[1644350028676,48.1415,110.93,110.8,1.27758414]
[1644350028876,24.8881,110.93,110.82,1.27758414]
[1644350029077,24.8881,110.93,110.82,7.27758414]
[1644350029377,13.5315,110.91,110.84,13.5316]
[1644350029577,13.5315,110.91,110.84,13.5556]
[1644350029779,13.5315,110.91,110.84,13.7816]
[1644350030383,19.7815,110.91,110.84,13.7816]
[1644350031787,19.7815,110.91,110.84,13.5316]
[1644350031987,19.7815,110.91,110.83,56.26309162]
[1644350032186,19.7815,110.91,110.83,56.51309162]
[1644350034789,19.7815,110.91,110.83,63.88737976]
[1644350036709,19.7815,110.91,110.83,62.51309162]
[1644350038710,19.7815,110.91,110.84,23.73107001]
[1644350039109,19.7815,110.91,110.84,44.88755815]
[1644350039810,19.7815,110.91,110.84,21.15648814]
[1644350040010,19.7815,110.91,110.84,19.7822]
[1644350040212,19.7815,110.91,110.84,19.5322]
[1644350041711,19.7815,110.91,110.84,19.7822]
[1644350042413,13.7815,110.91,110.84,19.7822]
[1644350045120,45.1008,110.95,110.85,25.12956587]
[1644350045320,37.3749,110.97,110.88,13.5273]
[1644350045519,24.4049,110.97,110.88,24.8463]
[1644350045719,62.18183082,111.0,110.88,31.1203]
[1644350045920,35.92643857,110.99,110.9,47.71947676]
[1644350046122,35.92643857,110.99,110.9,47.74347676]
[1644350046424,13.5248,110.97,110.91,13.5248]
[1644350046620,35.92643857,110.99,110.91,23.2178]
[1644350046819,35.92643857,110.99,110.91,24.84208814]
[1644350047220,35.92643857,110.99,110.91,23.4678]
[1644350047622,35.92643857,110.99,110.91,29.4678]
[1644350047822,13.5229,110.98,110.91,29.4678]
[1644350048222,13.7729,110.98,110.91,29.4678]
[1644350048622,0.25,110.98,110.91,30.84208814]
[1644350048822,35.92643857,110.99,110.91,30.84208814]
[1644350049823,49.44823857,110.99,110.91,30.84208814]
[1644350050424,49.44823857,110.99,110.91,29.4678]
[1644350050629,13.5218,110.99,110.91,29.4678]
[1644350050828,108.33723082,111.03,110.92,1.37428814]
[1644350051026,13.5204,111.0,110.94,13.5196]
[1644350051229,13.5204,111.0,110.94,24.2376]
[1644350051427,13.5204,111.0,110.94,25.61188814]
[1644350051633,150.19216048,111.03,110.95,44.95939757]
[1644350051827,1.26653082,111.03,110.95,51.20939757]
[1644350052029,11.52456329,111.08,110.95,51.20939757]
[1644350052030,1.26653082,111.04,110.96,1.37428814]
[1644350052228,46.6289,111.08,110.96,21.14338814]
[1644350052229,1.26653082,111.06,110.96,21.14338814]
[1644350052428,1.26653082,111.07,110.96,80.95998814]
[1644350052629,47.89543082,111.08,110.97,1.37428814]
[1644350052929,40.34761348,111.07,110.97,11.43528814]
[1644350053130,46.34761348,111.07,110.97,17.43528814]
[1644350053526,59.86071348,111.07,111.0,13.5127]
[1644350053726,60.11071348,111.07,110.99,46.52777823]
[1644350054133,60.11071348,111.07,110.99,46.77777823]
[1644350054428,60.11071348,111.07,110.99,46.52777823]
[1644350054628,62.21846897,111.07,110.99,46.52777823]
[1644350055030,62.21846897,111.07,110.97,6.0]
[1644350055031,62.21846897,111.07,110.96,23.6771]
[1644350055231,62.21846897,111.07,110.96,23.9271]
[1644350055430,75.18846897,111.07,110.96,23.6771]
[1644350055630,75.18846897,111.07,110.95,13.5199]
[1644350055831,75.18846897,111.07,110.92,93.1866]
[1644350056030,1.26653082,111.06,110.93,45.04024849]
[1644350056230,13.5223,111.03,110.93,45.04024849]
[1644350056429,47.44217169,111.02,110.93,51.04024849]
[1644350056632,47.44217169,111.02,110.93,64.56254849]
[1644350056829,47.44217169,111.02,110.93,58.56254849]
[1644350057031,49.54992718,111.02,110.93,58.56254849]
[1644350057230,49.54992718,111.02,110.93,58.81254849]
[1644350057430,49.79992718,111.02,110.93,58.81254849]
[1644350057732,13.5227,111.0,110.93,58.81254849]
[1644350058136,13.5227,111.0,110.92,13.5237]
[1644350058331,15.63045549,111.0,110.9,24.7688]
[1644350058534,15.63045549,111.0,110.9,24.9948]
[1644350059235,15.63045549,111.0,110.91,43.24523386]
[1644350059433,15.63045549,111.0,110.91,56.77013386]
[1644350059434,13.5227,111.0,110.91,56.77013386]
[1644350059633,13.5227,111.0,110.91,58.144422]
[1644350059832,13.5227,111.0,110.92,1.37428814]
[1644350060032,19.5227,111.0,110.92,1.37428814]
[1644350060235,19.5227,111.0,110.92,0.25]
[1644350060434,19.5227,111.0,110.91,43.24523386]
[1644350060634,19.5227,111.0,110.91,43.49523386]
[1644350060834,19.7727,111.0,110.91,43.49523386]
[1644350061439,19.5227,111.0,110.91,43.49523386]
[1644350061636,13.5227,111.0,110.93,13.522]
[1644350061841,13.5199,111.01,110.93,13.772]
[1644350062235,19.5199,111.01,110.93,13.522]
[1644350062841,13.5199,111.01,110.93,13.522]
[1644350063644,13.5199,111.01,110.93,19.522]
[1644350064046,25.46133082,111.04,110.93,28.385]
[1644350064247,1.26653082,111.06,110.93,41.355]
[1644350064450,25.87113082,111.07,110.93,41.355]
[1644350064848,39.93396552,111.06,110.93,41.355]
[1644350065149,39.93396552,111.06,110.93,65.7671]
[1644350065348,40.18396552,111.06,110.93,65.7671]
[1644350065750,53.69906552,111.06,110.93,65.7671]
[1644350065949,40.18396552,111.06,110.93,65.7671]
[1644350066551,39.18396552,111.06,110.93,65.7671]
[1644350066749,39.18396552,111.06,110.94,41.39566491]
[1644350066952,39.18396552,111.06,110.97,13.515]
[1644350067149,39.18396552,111.06,110.98,43.86485404]
[1644350067348,39.18396552,111.06,110.98,44.11485404]
[1644350067549,39.18396552,111.06,110.98,50.11485404]
[1644350068150,52.69956552,111.06,111.0,36.59470099]
[1644350068774,39.18396552,111.06,111.0,36.84470099]
[1644350068970,0.25,111.06,111.0,36.84470099]
[1644350069369,30.4298,111.08,111.0,36.84470099]
[1644350069770,13.5143,111.07,111.0,36.59470099]
[1644350069969,53.48452999,111.07,111.0,36.84470099]
[1644350070671,13.5143,111.07,111.0,36.84470099]
[1644350071075,13.5143,111.07,111.0,50.35880099]
[1644350071274,30.4298,111.08,111.0,50.35880099]
[1644350071472,14.77933082,111.09,111.0,50.35880099]
[1644350071672,42.63549485,111.09,111.0,50.35880099]
[1644350071874,41.36896403,111.09,111.0,50.35880099]
[1644350072077,41.61896403,111.09,111.0,56.35880099]
[1644350072281,41.61896403,111.09,111.0,50.35880099]
[1644350073284,41.36896403,111.09,111.0,50.35880099]
[1644350073684,41.36896403,111.09,111.0,56.35880099]
[1644350073886,13.5105,111.1,111.0,56.35880099]
[1644350074084,1.26653082,111.11,111.0,56.35880099]
[1644350074289,1.26653082,111.11,111.0,80.92780099]
[1644350074486,1.26653082,111.12,111.0,93.89780099]
[1644350074690,7.26653082,111.12,111.01,24.5544]
[1644350074887,43.88136615,111.11,111.04,13.5067]
[1644350075086,43.88136615,111.11,111.05,47.18077495]
[1644350076787,57.39046615,111.11,111.05,47.18077495]
[1644350076988,57.64046615,111.11,111.05,47.18077495]
[1644350077387,44.13136615,111.11,111.05,47.43077495]
[1644350077790,44.13136615,111.11,111.05,47.18077495]
[1644350078490,43.88136615,111.11,111.05,47.18077495]
[1644350078690,43.88136615,111.11,111.05,47.43077495]
[1644350078890,1.26653082,111.13,111.05,47.43077495]
[1644350079093,1.26653082,111.14,111.05,62.43806308]
[1644350079291,1.26653082,111.14,111.05,75.94626308]
[1644350079693,1.26653082,111.15,111.05,88.91626308]
[1644350079890,69.2378194,111.16,111.05,111.86456308]
[1644350080118,24.74063082,111.16,111.05,111.86456308]
[1644350080314,1.26653082,111.16,111.05,111.86456308]
[1644350080516,1.26653082,111.17,111.05,135.10366308]
[1644350080913,1.26653082,111.17,111.05,189.29366308]
[1644350081126,1.26653082,111.18,111.06,144.00589809]
[1644350081320,16.74128619,111.23,111.09,13.4973]
[1644350081321,2.53624477,111.22,111.09,13.4973]
[1644350081513,13.4965,111.22,111.1,61.1893]
[1644350081713,13.4965,111.22,111.1,76.28183623]
[1644350081913,24.2327,111.24,111.1,77.65284805]
[1644350082113,2.53624477,111.25,111.11,1.37101182]
[1644350082315,34.8462352,111.24,111.13,13.4958]
[1644350082512,34.8462352,111.24,111.14,54.95304976]
[1644350082713,34.8462352,111.24,111.14,61.20304976]
[1644350083514,40.8462352,111.24,111.12,24.6098]
[1644350083715,40.8462352,111.24,111.1,23.7679]
[1644350083716,89.07029069,111.24,111.1,23.7679]
[1644350084016,116.11909278,111.24,111.09,24.3674]
[1644350084213,116.36909278,111.24,111.09,24.3674]
[1644350084615,116.36909278,111.24,111.1,43.80554937]
[1644350084819,124.88166805,111.24,111.1,57.30674937]
[1644350085017,124.88166805,111.24,111.1,57.55674937]
[1644350085318,124.88166805,111.24,111.1,58.92776119]
[1644350085718,115.22566805,111.24,111.1,58.92776119]
[1644350085918,115.22566805,111.24,111.1,57.55674937]
[1644350086218,115.66566805,111.24,111.1,57.30674937]
[1644350086417,115.66566805,111.24,111.09,37.8698]
[1644350086618,13.5048,111.19,111.05,94.60111182]
[1644350086818,59.1715,111.18,111.05,94.85111182]
[1644350087018,61.27925549,111.18,111.05,94.85111182]
[1644350087420,36.06852078,111.17,111.06,37.91323808]
[1644350087820,49.57202078,111.17,111.07,13.5038]
[1644350088030,55.57202078,111.17,111.08,44.77702698]
[1644350088322,55.82202078,111.17,111.08,45.02702698]
[1644350088723,55.82202078,111.17,111.08,46.3980388]
[1644350089021,0.25,111.17,111.09,13.5022]
[1644350089223,46.2015,111.18,111.09,13.7522]
[1644350089622,46.2015,111.18,111.09,15.12321182]
[1644350090128,46.2015,111.18,111.1,45.87384004]
[1644350090327,12.97,111.2,111.11,13.4996]
[1644350090525,24.0218,111.21,111.11,27.03061182]
[1644350090723,24.0218,111.21,111.11,31.9096]
[1644350090924,48.8871,111.22,111.12,1.37101182]
[1644350091124,54.8871,111.22,111.12,1.37101182]
[1644350091329,94.36354097,111.22,111.13,42.48518564]
[1644350091722,94.36354097,111.22,111.13,42.73518564]
[1644350091922,94.36354097,111.22,111.13,44.10619746]
[1644350092124,94.36354097,111.22,111.13,42.73518564]
[1644350092326,107.86064097,111.22,111.13,56.23178564]
[1644350094926,108.11064097,111.22,111.13,56.23178564]
[1644350096633,110.21839646,111.22,111.13,55.98178564]
[1644350097132,110.21839646,111.22,111.13,42.48518564]
[1644350098033,110.21839646,111.22,111.1,22.906]
[1644350098233,119.03639646,111.22,111.09,57.9662]
[1644350098431,119.03639646,111.22,111.11,13.5001]
[1644350099039,119.03639646,111.22,111.12,44.42541884]
[1644350099240,132.00639646,111.22,111.12,44.42541884]
[1644350100742,134.54264123,111.22,111.12,44.42541884]
[1644350101144,134.54264123,111.22,111.09,13.5025]
[1644350101343,134.54264123,111.22,111.09,13.7525]
[1644350101546,5.06808165,111.21,111.09,13.7525]
[1644350101743,13.5028,111.18,111.09,13.7525]
[1644350102144,48.08632009,111.17,111.1,47.14180852]
[1644350103145,61.58912009,111.17,111.09,0.25]
[1644350103347,61.58912009,111.17,111.07,13.7541]
[1644350103549,61.58912009,111.17,111.07,19.7541]
[1644350104047,67.83912009,111.17,111.08,41.74945461]
[1644350104446,67.83912009,111.17,111.08,55.25315461]
[1644350105646,67.83912009,111.17,111.08,55.50315461]
[1644350108367,67.83912009,111.17,111.08,41.74945461]
[1644350108769,67.83912009,111.17,111.08,41.99945461]